fUST/lending_fUST_20240119
["ID","MTS","AMOUNT","RATE_DAILY","PERIOD"]
[312112396,1705638641275,-386.32476631,0.00033,2]
[312112398,1705638641284,-54792.97642703,0.00033,2]
[312112399,1705638641293,-170.0,0.00033,2]
[312112400,1705638641302,-172.0,0.00033,2]
[312112401,1705638641311,-1273.60431467,0.0003314,2]
[312112402,1705638641320,-310.93139923,0.00033148,7]
[312112403,1705638641329,-673.87286433,0.00033149,4]
[312112404,1705638641338,-500.0,0.00033149,3]
[312112405,1705638641348,-500.0,0.00033149,3]
[312112406,1705638641366,-410.41281499,0.0003315,4]
[312112407,1705638641376,-521.38601763,0.0003315,3]
[312112408,1705638641385,-500.0,0.0003315,3]
[312112409,1705638641395,-500.0,0.0003315,3]
[312112410,1705638641405,-500.0,0.0003315,3]
[312112411,1705638641414,-500.0,0.0003315,3]
[312112412,1705638641424,-511.22320999,0.0003315,3]
[312112413,1705638641433,-501.40007869,0.0003315,3]
[312112414,1705638641443,-583.97798925,0.0003315,3]
[312112415,1705638641454,-362.39709641,0.0003315,3]
[312112416,1705638641463,-500.0,0.0003315,3]
[312112417,1705638641472,-500.0,0.0003315,3]
[312112418,1705638641482,-500.0,0.0003315,3]
[312112419,1705638641492,-496.21513945,0.0003315,3]
[312112420,1705638641501,-505.34721411,0.0003315,3]
[312112421,1705638641511,-500.0,0.0003315,3]
[312112422,1705638641520,-500.0,0.0003315,3]
[312112423,1705638641529,-500.0,0.0003315,3]
[312112424,1705638641538,-588.12453349,0.0003315,3]
[312112425,1705638641548,-500.0,0.0003315,3]
[312112426,1705638641558,-500.0,0.0003315,3]
[312112427,1705638641567,-500.0,0.0003315,3]
[312112428,1705638641576,-546.101931,0.0003315,3]
[312112429,1705638641585,-500.0,0.0003315,3]
[312112430,1705638641593,-500.0,0.0003315,3]
[312112431,1705638641603,-500.0,0.0003315,3]
[312112432,1705638641613,-503.99081908,0.0003315,3]
[312112433,1705638641622,-500.0,0.0003315,3]
[312112434,1705638641632,-485.51076799,0.0003315,3]
[312112435,1705638641641,-1185.01,0.0003315,3]
[312112436,1705638641650,-500.0,0.0003315,3]
[312112437,1705638641659,-635.34,0.0003315,3]
[312112439,1705638641668,-505.5506374,0.0003315,3]
[312112441,1705638641678,-500.0,0.0003315,3]
[312112443,1705638641688,-502.10655044,0.0003315,5]
[312112445,1705638641698,-566.65,0.0003315,3]
[312112446,1705638641708,-500.0,0.0003315,3]
[312112448,1705638641718,-500.0,0.0003315,3]
[312112450,1705638641729,-726.56,0.0003315,3]
[312112451,1705638641740,-518.51183488,0.0003315,3]
[312112453,1705638641755,-500.0,0.0003315,3]
[312112454,1705638641765,-935.5,0.0003315,3]
[312112456,1705638641776,-7218.08,0.0003315,3]
[312112458,1705638641790,-875.36,0.0003315,3]
[312112459,1705638641801,-500.0,0.0003315,3]
[312112460,1705638641812,-499.99997079,0.0003315,3]
[312112461,1705638641824,-500.0,0.0003315,3]
[312112462,1705638641835,-1022.98,0.0003315,3]
[312112463,1705638641846,-1969.22,0.0003315,3]
[312112464,1705638641856,-516.49737207,0.0003315,3]
[312112465,1705638641867,-500.0,0.0003315,3]
[312112466,1705638641877,-500.0,0.0003315,3]
[312112467,1705638641887,-813.52,0.0003315,3]
[312112468,1705638641898,-5304.37,0.0003315,3]
[312112469,1705638641908,-766.27,0.0003315,3]
[312112470,1705638641917,-1707.35,0.0003315,3]
[312112471,1705638641927,-500.0,0.0003315,3]
[312112472,1705638641936,-2657.55,0.0003315,3]
[312112473,1705638641946,-518.27555561,0.0003315,3]
[312112474,1705638641956,-500.0,0.0003315,3]
[312112475,1705638641966,-500.0,0.0003315,3]
[312112476,1705638641976,-500.0,0.0003315,3]
[312112477,1705638641985,-500.0,0.0003315,3]
[312112478,1705638641997,-500.0,0.0003315,3]
[312112479,1705638642009,-500.0,0.0003315,3]
[312112480,1705638642019,-515.65662381,0.0003315,3]
[312112481,1705638642029,-500.0,0.0003315,3]
[312112482,1705638642038,-500.0,0.0003315,3]
[312112483,1705638642048,-500.0,0.0003315,3]
[312112484,1705638642057,-2175.63,0.0003315,3]
[312112485,1705638642067,-500.0,0.0003315,3]
[312112486,1705638642076,-2230.41,0.0003315,3]
[312112487,1705638642085,-230.92803459,0.0003315,3]
[312112488,1705638642095,-687.52,0.0003315,3]
[312112489,1705638642104,-503.57909718,0.0003315,3]
[312112490,1705638642113,-504.07827703,0.0003315,3]
[312112491,1705638642123,-507.82039817,0.0003315,2]
[312112492,1705638642132,-505.22432973,0.0003315,3]
[312112493,1705638642141,-610.51,0.0003315,3]
[312112494,1705638642151,-155.0,0.0003327,2]
[312112495,1705638642167,-1032.0,0.00033294,30]
[312112496,1705638642182,-1032.0,0.00033304,30]
[312112497,1705638642191,-1032.0,0.00033314,30]
[312112498,1705638642201,-500.0,0.00033322,3]
[312112499,1705638642211,-250.0,0.00033323,7]
[312112500,1705638642220,-500.0,0.00033323,3]
[312112501,1705638642231,-500.0,0.00033323,3]
[312112502,1705638642241,-500.0,0.00033323,3]
[312112503,1705638642253,-500.0,0.00033323,3]
[312112504,1705638642263,-500.0,0.00033323,3]
[312112505,1705638642272,-500.0,0.00033323,3]
[312112506,1705638642282,-500.0,0.00033323,3]
[312112507,1705638642291,-151.0,0.00033324,2]
[312112508,1705638642301,-503.91134708,0.00033423,3]
[312112509,1705638642311,-385.55693188,0.00033424,3]
[312112510,1705638642321,-500.0,0.00033424,3]
[312112511,1705638642330,-500.0,0.00033424,3]
[312112512,1705638642340,-500.0,0.00033424,3]
[312112513,1705638642349,-500.0,0.00033424,3]
[312112514,1705638642360,-500.0,0.00033424,3]
[312112515,1705638642370,-500.0,0.00033424,3]
[312112516,1705638642381,-390.50952533,0.00033424,3]
[312112517,1705638642390,-500.0,0.00033424,3]
[312112518,1705638642400,-500.0,0.00033424,3]
[312112519,1705638642409,-1185.01,0.00033424,3]
[312112520,1705638642419,-500.0,0.00033424,3]
[312112521,1705638642428,-635.34,0.00033424,3]
[312112522,1705638642438,-500.0,0.00033424,3]
[312112523,1705638642447,-566.65,0.00033424,3]
[312112524,1705638642457,-500.0,0.00033424,3]
[312112525,1705638642466,-500.0,0.00033424,3]
[312112526,1705638642476,-726.56,0.00033424,3]
[312112527,1705638642485,-611.02220201,0.00033424,3]
[312112528,1705638642494,-935.5,0.00033424,3]
[312112529,1705638642506,-7218.08,0.00033424,3]
[312112530,1705638642515,-875.36,0.00033424,3]
[312112531,1705638642525,-500.0,0.00033424,3]
[312112532,1705638642535,-500.0,0.00033424,3]
[312112533,1705638642545,-1022.98,0.00033424,3]
[312112534,1705638642554,-1356.81253042,0.00033424,3]
[312112587,1705638643794,-500.0,0.00032876,2]
[312112588,1705638643804,-612.40746958,0.00033424,3]
[312112589,1705638643814,-500.0,0.00033424,3]
[312112590,1705638643823,-813.52,0.00033424,3]
[312112591,1705638643833,-5304.37,0.00033424,3]
[312112592,1705638643843,-766.27,0.00033424,3]
[312112594,1705638643852,-1707.35,0.00033424,3]
[312112596,1705638643861,-500.0,0.00033424,3]
[312112597,1705638643871,-2657.55,0.00033424,3]
[312112598,1705638643880,-500.0,0.00033424,3]
[312112599,1705638643889,-500.0,0.00033424,3]
[312112600,1705638643899,-500.0,0.00033424,3]
[312112601,1705638643909,-500.0,0.00033424,3]
[312112602,1705638643918,-500.0,0.00033424,3]
[312112603,1705638643928,-500.0,0.00033424,3]
[312112604,1705638643938,-500.0,0.00033424,3]
[312112605,1705638643947,-500.0,0.00033424,3]
[312112606,1705638643956,-500.0,0.00033424,3]
[312112607,1705638643965,-2175.63,0.00033424,3]
[312112608,1705638643975,-2230.41,0.00033424,3]
[312112609,1705638643984,-687.52,0.00033424,3]
[312112610,1705638643994,-610.51,0.00033424,3]
[312112611,1705638644005,-177.04953276,0.0003361,2]
[312112612,1705638644015,-500.0,0.00033698,3]
[312112613,1705638644024,-500.0,0.00033698,3]
[312112614,1705638644033,-500.0,0.00033698,3]
[312112615,1705638644043,-500.0,0.00033698,3]
[312112616,1705638644054,-500.0,0.00033698,3]
[312112617,1705638644064,-500.0,0.00033698,3]
[312112618,1705638644073,-1185.01,0.00033698,3]
[312112619,1705638644082,-500.0,0.00033698,3]
[312112620,1705638644092,-635.34,0.00033698,3]
[312112621,1705638644101,-500.0,0.00033698,3]
[312112622,1705638644111,-566.65,0.00033698,3]
[312112623,1705638644120,-637.62449077,0.00033698,3]
[312112624,1705638644129,-500.0,0.00033698,3]
[312112625,1705638644138,-726.56,0.00033698,3]
[312112626,1705638644147,-935.5,0.00033698,3]
[312112627,1705638644156,-7218.08,0.00033698,3]
[312112628,1705638644166,-875.36,0.00033698,3]
[312112629,1705638644174,-500.0,0.00033698,3]
[312112630,1705638644183,-500.0,0.00033698,3]
[312112631,1705638644193,-1022.98,0.00033698,3]
[312112632,1705638644203,-1969.22,0.00033698,3]
[312112633,1705638644212,-500.0,0.00033698,3]
[312112634,1705638644221,-813.52,0.00033698,3]
[312112635,1705638644231,-5304.37,0.00033698,3]
[312112636,1705638644240,-766.27,0.00033698,3]
[312112637,1705638644251,-1707.35,0.00033698,3]
[312112638,1705638644261,-500.0,0.00033698,3]
[312112639,1705638644270,-2657.55,0.00033698,3]
[312112640,1705638644279,-500.0,0.00033698,3]
[312112641,1705638644288,-500.0,0.00033698,3]
[312112642,1705638644297,-500.0,0.00033698,3]
[312112643,1705638644307,-500.0,0.00033698,3]
[312112644,1705638644316,-500.0,0.00033698,3]
[312112645,1705638644325,-500.0,0.00033698,3]
[312112646,1705638644334,-500.0,0.00033698,3]
[312112647,1705638644344,-500.0,0.00033698,3]
[312112648,1705638644354,-2175.63,0.00033698,3]
[312112649,1705638644365,-2230.41,0.00033698,3]
[312112650,1705638644375,-687.52,0.00033698,3]
[312112651,1705638644384,-610.51,0.00033698,3]
[312112652,1705638644395,-564.581117,0.00033698,2]
[312112653,1705638644404,-564.581117,0.00033698,2]
[312112654,1705638644414,-266.725073,0.00033698,2]
[312112655,1705638644423,-500.0,0.00033871,4]
[312112656,1705638644432,-500.0,0.00033871,4]
[312112657,1705638644442,-500.0,0.00033871,4]
[312112658,1705638644451,-473.04677902,0.00033871,4]
[312112659,1705638644462,-500.0,0.00033871,4]
[312112660,1705638644472,-500.0,0.00033871,4]
[312112661,1705638644481,-500.0,0.00033871,4]
[312112662,1705638644491,-404.79340181,0.00033871,4]
[312112663,1705638644501,-500.0,0.00033871,4]
[312112664,1705638644509,-213.62941821,0.00033871,4]
[312112665,1705638644518,-381.98556716,0.00033871,4]
[312112666,1705638644529,-500.0,0.00033871,4]
[312112667,1705638644538,-500.0,0.00033871,4]
[312112668,1705638644547,-500.0,0.00033871,4]
[312112669,1705638644556,-500.0,0.00033871,4]
[312112670,1705638644565,-238.64316817,0.00033871,4]
[312112671,1705638644574,-500.0,0.00033871,2]
[312112672,1705638644583,-219.28,0.00033871,2]
[312112673,1705638644593,-500.0,0.00033871,7]
[312112674,1705638644603,-470.14444551,0.00033871,7]
[312112675,1705638644612,-500.0,0.00033871,7]
[312112676,1705638644622,-500.0,0.00033871,7]
[312112677,1705638644632,-500.0,0.00033871,7]
[312112678,1705638644641,-585.10004292,0.00033871,7]
[312112679,1705638644651,-498.83167863,0.00033871,7]
[312112680,1705638644660,-500.0,0.00033871,7]
[312112681,1705638644670,-500.0,0.00033871,7]
[312112682,1705638644680,-500.0,0.00033871,7]
[312112683,1705638644689,-500.0,0.00033871,7]
[312112684,1705638644698,-500.0,0.00033871,7]
[312112685,1705638644708,-500.0,0.00033871,7]
[312112686,1705638644718,-500.0,0.00033871,7]
[312112687,1705638644727,-500.0,0.00033871,7]
[312112688,1705638644737,-500.0,0.00033871,7]
[312112689,1705638644748,-248.15612096,0.00033871,7]
[312112690,1705638644758,-228.31192266,0.00033871,7]
[312112691,1705638644767,-500.0,0.00033871,7]
[312112692,1705638644776,-500.0,0.00033871,7]
[312112693,1705638644786,-500.0,0.00033871,7]
[312112694,1705638644796,-500.0,0.00033871,7]
[312112695,1705638644805,-216.28656058,0.00033871,7]
[312112696,1705638644815,-500.0,0.00033871,7]
[312112697,1705638644825,-500.0,0.00033871,7]
[312112698,1705638644835,-500.0,0.00033871,7]
[312112699,1705638644845,-160.60183971,0.00033871,7]
[312112700,1705638644855,-500.0,0.00033871,7]
[312112701,1705638644864,-500.0,0.00033871,7]
[312112702,1705638644873,-500.0,0.00033871,7]
[312112703,1705638644883,-500.0,0.00033871,7]
[312112704,1705638644893,-500.0,0.00033871,7]
[312112705,1705638644902,-500.0,0.00033871,7]
[312112706,1705638644911,-500.0,0.00033871,7]
[312112707,1705638644920,-38560.35367316,0.00033872,3]
[312112708,1705638644930,-500.0,0.00033972,3]
[312112709,1705638644940,-500.0,0.00033972,3]
[312112710,1705638644950,-500.0,0.00033972,3]
[312112711,1705638644960,-249.02860031,0.00033972,3]
[312112712,1705638644970,-500.0,0.00033972,3]
[312112713,1705638644979,-500.0,0.00033972,3]
[312112714,1705638644989,-1185.01,0.00033972,3]
[312112715,1705638644999,-500.0,0.00033972,3]
[312112716,1705638645008,-635.34,0.00033972,3]
[312112717,1705638645017,-226.67704984,0.00033972,3]
[312112718,1705638645026,-566.65,0.00033972,3]
[312112719,1705638645035,-500.0,0.00033972,3]
[312112720,1705638645045,-726.56,0.00033972,3]
[312112721,1705638645054,-935.5,0.00033972,3]
[312112722,1705638645063,-7218.08,0.00033972,3]
[312112723,1705638645072,-875.36,0.00033972,3]
[312112724,1705638645082,-619.26,0.00033972,3]
[312112725,1705638645091,-1022.98,0.00033972,3]
[312112726,1705638645100,-1969.22,0.00033972,3]
[312112727,1705638645110,-500.0,0.00033972,3]
[312112728,1705638645119,-813.52,0.00033972,3]
[312112729,1705638645129,-5304.37,0.00033972,3]
[312112730,1705638645139,-766.27,0.00033972,3]
[312112731,1705638645148,-1707.35,0.00033972,3]
[312112732,1705638645157,-500.0,0.00033972,3]
[312112733,1705638645167,-2657.55,0.00033972,3]
[312112734,1705638645177,-500.0,0.00033972,3]
[312112735,1705638645187,-500.0,0.00033972,3]
[312112736,1705638645197,-500.0,0.00033972,3]
[312112737,1705638645206,-500.0,0.00033972,3]
[312112738,1705638645215,-500.0,0.00033972,3]
[312112739,1705638645225,-500.0,0.00033972,3]
[312112740,1705638645234,-314.91666345,0.00033972,3]
[312112741,1705638645243,-500.0,0.00033972,3]
[312112742,1705638645253,-2175.63,0.00033972,3]
[312112743,1705638645262,-2230.41,0.00033972,3]
[312112744,1705638645271,-687.52,0.00033972,3]
[312112745,1705638645280,-610.51,0.00033972,3]
[312112746,1705638645289,-564.581117,0.00033972,2]
[312112747,1705638645300,-564.581117,0.00033972,2]
[312112748,1705638645310,-20585.33663709,0.00034,2]
[312112749,1705638645323,-4576.62707354,0.00034,2]
[312112750,1705638645334,-5500.72589033,0.00034,2]
[312112751,1705638645343,-239.30953491,0.00034044,4]
[312112752,1705638645353,-1993.19771969,0.00034144,4]
[312112753,1705638645363,-1196.58612071,0.00034144,3]
[312112754,1705638645372,-3126.02728391,0.00034144,4]
[312112755,1705638645384,-343.87007356,0.00034146,4]
[312112756,1705638645394,-333.2551546,0.00034146,2]
[312112757,1705638645403,-151.0,0.00034146,2]
[312112758,1705638645412,-151.0,0.00034146,2]
[312112759,1705638645422,-151.0,0.00034146,2]
[312112760,1705638645431,-151.0,0.00034146,2]
[312112761,1705638645441,-564.581117,0.00034146,2]
[312112762,1705638645450,-564.581117,0.00034146,2]
[312112763,1705638645460,-151.0,0.0003415,2]
[312112764,1705638645471,-396.94620069,0.00034246,3]
[312112765,1705638645481,-500.0,0.00034246,3]
[312112766,1705638645491,-500.0,0.00034246,3]
[312112767,1705638645500,-295.21,0.00034246,3]
[312112768,1705638645510,-500.0,0.00034246,3]
[312112769,1705638645519,-1185.01,0.00034246,3]
[312112770,1705638645528,-500.0,0.00034246,3]
[312112771,1705638645538,-635.34,0.00034246,3]
[312112772,1705638645547,-566.65,0.00034246,3]
[312112773,1705638645556,-500.0,0.00034246,3]
[312112774,1705638645566,-726.56,0.00034246,3]
[312112775,1705638645576,-935.5,0.00034246,3]
[312112776,1705638645585,-7218.08,0.00034246,3]
[312112777,1705638645594,-875.36,0.00034246,3]
[312112778,1705638645672,-1969.22,0.00034246,3]
[312112779,1705638645681,-1022.98,0.00034246,3]
[312112780,1705638645691,-500.0,0.00034246,3]
[312112781,1705638645700,-813.52,0.00034246,3]
[312112782,1705638645710,-5304.37,0.00034246,3]
[312112783,1705638645719,-766.27,0.00034246,3]
[312112784,1705638645728,-1707.35,0.00034246,3]
[312112785,1705638645738,-500.0,0.00034246,3]
[312112786,1705638645747,-2657.55,0.00034246,3]
[312112787,1705638645757,-14.09018685,0.00034246,3]
[312112852,1705639266352,203.401971,0.00035616,120]
[312112868,1705639754100,-607.13204194,0.00029539,2]
[312112869,1705639754120,-246.07285378,0.0002954,2]
[312112870,1705639754140,-154.90705577,0.00029541,2]
[312112871,1705639754160,-323.39599469,0.00029542,2]
[312112872,1705639754180,-2533.22774348,0.00029543,7]
[312112873,1705639757094,-1438.35887046,0.00029543,7]
[312112874,1705639757115,-84.70724829,0.00029587,2]
[312112916,1705639833071,-507.71126368,0.00029439,2]
[312112917,1705639833081,-172.86253631,0.00029587,2]
[312112951,1705639837908,-53.59537203,0.00029587,2]
[312112953,1705639837917,-683.87536543,0.00029587,2]
[312112955,1705639837926,-305.51246618,0.00029587,2]
[312112957,1705639837935,-171.0,0.00029587,2]
[312112959,1705639837945,-261.40839953,0.00029587,2]
[312112961,1705639837954,-1275.53211699,0.00029587,2]
[312112963,1705639837963,-995.5330643,0.00031017,2]
[312112965,1705639837973,-669.10906904,0.00031135,5]
[312112967,1705639837981,-161.732363,0.00031187,2]
[312112968,1705639837990,-6013.4651163,0.00031229,2]
[312112970,1705639838000,-155.0,0.00031776,2]
[312112973,1705639838009,-460.63543255,0.00031872,2]
[312112974,1705639838018,-4182.64,0.0003189,3]
[312112976,1705639838028,-539.46,0.00031899,2]
[312112978,1705639838038,-323.676,0.00031899,7]
[312112979,1705639838047,-500.0,0.00031899,4]
[312112980,1705639838058,-500.0,0.00031899,4]
[312112982,1705639838068,-500.0,0.00031899,4]
[312112983,1705639838077,-500.0,0.00031899,4]
[312112985,1705639838086,-629.1913403,0.00031899,4]
[312112987,1705639838095,-528.17765093,0.00031899,4]
[312112988,1705639838104,-500.0,0.00031899,4]
[312112989,1705639838114,-178.59505135,0.00031899,4]
[312112990,1705639838123,-343.1859009,0.00031899,4]
[312112991,1705639838132,-500.0,0.00031899,2]
[312112992,1705639838142,-500.0,0.00031899,2]
[312112993,1705639838151,-581.97029173,0.00031899,2]
[312112994,1705639838161,-500.0,0.00031899,2]
[312112995,1705639838170,-500.0,0.00031899,2]
[312112996,1705639838180,-500.0,0.00031899,2]
[312112997,1705639838189,-405.46814914,0.00031899,2]
[312112998,1705639838200,-500.0,0.00031899,2]
[312112999,1705639838209,-500.0,0.00031899,2]
[312113000,1705639838218,-500.0,0.00031899,2]
[312113001,1705639838227,-500.0,0.00031899,2]
[312113002,1705639838236,-182.61671673,0.00031899,2]
[312113003,1705639838245,-500.0,0.00031899,2]
[312113004,1705639838254,-500.0,0.00031899,2]
[312113005,1705639838263,-500.0,0.00031899,2]
[312113006,1705639838272,-500.0,0.00031899,2]
[312113007,1705639838282,-500.0,0.00031899,2]
[312113008,1705639838291,-164.9457129,0.00031899,2]
[312113009,1705639838300,-500.0,0.00031899,2]
[312113010,1705639838308,-500.0,0.00031899,2]
[312113011,1705639838317,-500.0,0.00031899,2]
[312113012,1705639838327,-613.09112782,0.00031899,2]
[312113013,1705639838335,-500.0,0.00031899,2]
[312113014,1705639838344,-500.0,0.00031899,2]
[312113015,1705639838353,-500.0,0.00031899,2]
[312113016,1705639838362,-500.0,0.00031899,2]
[312113017,1705639838371,-500.0,0.00031899,2]
[312113018,1705639838380,-406.66787538,0.00031899,2]
[312113019,1705639838389,-500.0,0.00031899,2]
[312113020,1705639838398,-500.0,0.00031899,2]
[312113021,1705639838407,-500.0,0.00031899,2]
[312113022,1705639838416,-500.0,0.00031899,2]
[312113023,1705639838425,-500.0,0.00031899,2]
[312113024,1705639838434,-500.0,0.00031899,2]
[312113025,1705639838444,-349.89505039,0.00031899,2]
[312113026,1705639838452,-500.0,0.00031899,2]
[312113027,1705639838462,-500.0,0.00031899,2]
[312113028,1705639838471,-500.0,0.00031899,2]
[312113029,1705639838480,-649.62,0.00031899,2]
[312113030,1705639838490,-649.62,0.00031899,2]
[312113031,1705639838499,-649.62,0.00031899,2]
[312113032,1705639838508,-649.62,0.00031899,2]
[312113033,1705639838518,-430866.790999,0.000319,2]
[312113034,1705639838687,-124896.15519133,0.000319,2]
[312113035,1705639838701,-31896.8968521,0.000319,2]
[312113039,1705639840858,-469.45799078,0.00031899,2]
[312113040,1705639840872,-180.16200922,0.00031899,2]
[312113041,1705639840884,-649.62,0.00031899,2]
[312113042,1705639840895,-649.62,0.00031899,2]
[312113043,1705639840907,-649.62,0.00031899,2]
[312113044,1705639840919,-649.62,0.00031899,2]
[312113045,1705639840929,-649.62,0.00031899,2]
[312113046,1705639840941,-4486.03251457,0.000319,2]
[312113047,1705639842909,-1797.21781295,0.000319,2]
[312113183,1705640852108,-154.8915759,0.00026607,2]
[312113184,1705640852129,-95.1084241,0.00026607,2]
[312113187,1705640948596,-155.45721292,0.00026209,2]
[312113188,1705640948617,-3971.58661394,0.00026546,7]
[312113189,1705640948636,-425.69649895,0.00026546,2]
[312113190,1705640948655,-4811.28224285,0.00026547,2]
[312113191,1705640948674,-230.71907883,0.00026547,2]
[312113192,1705640948694,-8757.15684933,0.00026547,2]
[312113193,1705640948713,-1589.24944099,0.00026548,2]
[312113194,1705640948733,-294.70821043,0.00026548,2]
[312113195,1705640948755,-178.65716453,0.00026548,2]
[312113196,1705640948774,-154.8915759,0.00026548,2]
[312113197,1705640948794,-19857.05526045,0.00026548,2]
[312113198,1705640948815,-526.41054949,0.00026549,2]
[312113199,1705640948845,-452.47030798,0.00026549,2]
[312113200,1705640948868,-2996.33579383,0.00026549,2]
[312113201,1705640948889,-323.39599469,0.00026549,2]
[312113202,1705640948909,-20891.20723106,0.00026549,2]
[312113203,1705640948929,-3064.51830163,0.0002655,2]
[312113204,1705640949085,-498.00832139,0.0002655,5]
[312113205,1705640949112,-555.04009963,0.00026551,2]
[312113206,1705640949133,-170.79924496,0.00026551,2]
[312113207,1705640949155,-607.13204194,0.00026552,2]
[312113208,1705640949175,-873.86173983,0.00026552,2]
[312113209,1705640949195,-165.04572519,0.00026553,2]
[312113210,1705640949215,-151.77904229,0.00026554,2]
[312113211,1705640949236,-4315.83,0.00026591,3]
[312113212,1705640949257,-285.33586019,0.00026601,2]
[312113213,1705640949278,-155.20168695,0.00026601,2]
[312113214,1705640949299,-237.03094601,0.00026601,2]
[312113215,1705640949318,-214.00838778,0.00026601,2]
[312113216,1705640949339,-258.76819595,0.00026601,2]
[312113217,1705640949358,-155.21459852,0.00026601,2]
[312113218,1705640949379,-4011.58774012,0.00026601,2]
[312113219,1705640949413,-1007.08974538,0.00026601,2]
[312113220,1705640949433,-156.23501844,0.00026601,2]
[312113221,1705640949453,-3027.56006353,0.00026601,2]
[312113222,1705640949472,-155.60783716,0.00026601,2]
[312113223,1705640949492,-320.17848416,0.00026601,2]
[312113224,1705640949511,-155.31356522,0.00026601,2]
[312113225,1705640949531,-155.38994801,0.00026602,2]
[312113226,1705640949551,-2377.77411404,0.00026602,2]
[312113227,1705640949572,-399.87965736,0.00026607,2]
[312113228,1705640949594,-807.14249997,0.00026607,2]
[312113229,1705640951492,-3596.52,0.00026542,3]
[312113230,1705640951512,-3670.71084216,0.00026545,2]
[312113231,1705640956186,-1049.07815518,0.00026545,2]
[312113232,1705640956209,-463.71226533,0.00026607,2]
[312113233,1705640959314,2337.0,0.00028,30]
[312113234,1705640959342,-4.67735169,0.00026607,2]
[312113235,1705640959363,-155.69029805,0.00026608,2]
[312113236,1705640959384,-155.68597419,0.00026609,2]
[312113237,1705640959403,-202.726746,0.00026617,2]
[312113238,1705640959424,-157.05111516,0.00027627,2]
[312113239,1705640959443,-155.5913641,0.00028,10]
[312113240,1705640959463,-1120.31353969,0.00028698,2]
[312113241,1705640959482,-683.377264,0.00029587,2]
[312113242,1705640959503,-300.0,0.00029587,2]
[312113243,1705640959522,-353.00168447,0.00029587,2]
[312113244,1705640964100,-1260.73648492,0.00026607,2]
[312113245,1705640969256,-443.07722812,0.00026607,2]
[312113246,1705640969276,-354.86718168,0.00026607,2]
[312113255,1705641032016,-240.0426475,0.00025336,2]
[312113256,1705641032026,-45.01247568,0.00026607,2]
[312113257,1705641032036,-996.77344007,0.00026607,2]
[312113258,1705641032046,-1.89866434,0.00029587,2]
[312113259,1705641032056,-498.00832139,0.00029799,5]
[312113260,1705641032066,-368.64859512,0.000298,2]
[312113261,1705641032077,-452.47030798,0.00029998,2]
[312113262,1705641032086,-607.13204194,0.00029998,2]
[312113263,1705641032094,-154.87609912,0.00029999,2]
[312113264,1705641032104,-873.86173983,0.00029999,2]
[312113265,1705641032115,-330.1886566,0.0003,4]
[312113266,1705641032124,-79999.999999,0.0003,2]
[312113267,1705641032133,-154.87609912,0.00030135,2]
[312113268,1705641032143,-4804.25523849,0.00030135,7]
[312113284,1705641038092,-531.84961709,0.00030135,7]
[312113285,1705641038101,-500.0,0.00030136,2]
[312113286,1705641038110,-400.0,0.00030137,2]
[312113287,1705641038120,-500.0,0.00030273,2]
[312113288,1705641038130,-166.220792,0.00030274,2]
[312113289,1705641038139,-11765.85373231,0.00030302,4]
[312113290,1705641038148,-500.0,0.0003041,2]
[312113291,1705641038158,-643.05292926,0.00030547,2]